Cogmind - Beta 9.3 @@@ ROGUE MODE // 2019.12.21 @ 17:29:04 // Winter2019/RPGLIKE Player: Cassie Rose Result: Destroyed by Y-45 Defender with Heavy Assault Rifle Performance ------------- Evolutions (1) 500 Regions Visited (2) 400 Robots Destroyed (58) 290 Value Destroyed (1085) 1085 Prototype IDs (1) 20 Alien Tech Used (0) 0 Bonus (72) 72 TOTAL SCORE: 2367 Bonus ------- High Alert Combat Kills 72 Cogmind --------- Core Integrity 0/600 Matter 300/300 Energy 430/430 System Corruption 0% Temperature Cool (43) Movement Flying (29) Location -9/Materials Parts ------- > --- POWER (2) -------- Improved Ion Engine Improved Ion Engine > --- PROPULSION (4) --- Flight Unit Flight Unit Flight Unit Improved Flight Unit > --- UTILITY (2) ------ Improved Terrain Scanner Seismic Analyzer > --- WEAPON (3) ------- Hammer Mace Mining Claw > --- INVENTORY (0) ---- (None) Peak State ------------ > --- POWER ------------ Improved Ion Engine Improved Ion Engine > --- PROPULSION ------- Flight Unit Flight Unit Flight Unit Improved Flight Unit > --- UTILITY ---------- Improved Terrain Scanner Seismic Analyzer > --- WEAPON ----------- Hammer Mace Mining Claw > --- INVENTORY -------- (None) [Rating: 17] Favorites ----------- Power Light Ion Engine Engine Light Ion Engine Propulsion Flight Unit Wheel Wheel Flight Unit Flight Unit Utility Improved Terrain Scanner Device Improved Terrain Scanner Processor Seismic Analyzer Weapon Mace Energy Gun Medium Laser Ballistic Gun Assault Rifle Impact Weapon Mace Slashing Weapon Mining Claw Build | -11 -10 -9 ------- Run | Scr Mat Mat Slots Evolved 7 | 5 . 2 Power 1 | 1 . . Propulsion 3 | 1 . 2 Utility 1 | 1 . . Weapon 2 | 2 . . Parts Attached 33 | 9 14 10 Power 11 | 2 4 5 Engine 11 | 2 4 5 Core . | . . . Reactor . | . . . Propulsion 11 | 2 4 5 Treads . | . . . Leg . | . . . Wheel 3 | 2 1 . Hover . | . . . Flight 8 | . 3 5 Utility 2 | 2 . . Device 1 | 1 . . Storage . | . . . Processor 1 | 1 . . Hackware . | . . . Protection . | . . . Artifact . | . . . Weapon 9 | 3 6 . Energy Gun 1 | 1 . . Energy Cannon . | . . . Ballistic Gun 2 | 2 . . Ballistic Cannon . | . . . Launcher . | . . . Special Weapon . | . . . Impact Weapon 5 | . 5 . Slashing Weapon 1 | . 1 . Piercing Weapon . | . . . Special Melee Weapon . | . . . Unidentified Prototypes 1 | . . 1 Parts Lost . | . . . Power . | . . . Propulsion . | . . . Utility . | . . . Weapon . | . . . Highest Loss Streak . | . . . Average Slot Usage (%) 96 | . 99 93 Engine 20 | . 21 18 Wheel 7 | . 13 . Flight 17 | . 8 29 Device 10 | . 11 9 Processor 10 | . 11 9 Energy Gun 3 | . 6 . Ballistic Gun 7 | . 14 . Impact Weapon 14 | . 11 18 Slashing Weapon 4 | . . 9 Naked Turns . | . . . Heaviest Build 21 | 16 16 21 Greatest Support 38 | 25 25 38 Greatest Overweight (x) 1 | . 1 . Average Overweight (x) . | . . . Largest Inventory Capacity . | . . . Average Capacity . | . . . Most Carried . | . . . Average Carried . | . . . Final Capacity . | . . . Final Carried . | . . . Class Distribution -------------------- 39% | Scavenger-Mutant 36% | Skirmisher 21% | Scavenger-Sprinter 3% | Mutant Dominant Class ---------------- Skirmisher | -10/Materials Scavenger-Sprinter | -9/Materials Resources | -11 -10 -9 ----------- Run | Scr Mat Mat Matter Collected 678 | 322 200 156 Remotely . | . . . Salvage Created 1776 | 201 407 1168 Parts 108 | 21 29 58 Haulers Intercepted 6 | . 2 4 Recyclers Shooed 1 | . . 1 Parts Field Recycled . | . . . Retrieved Matter . | . . . Parts Self-Destructed . | . . . Prevented . | . . . Kills | -11 -10 -9 ------- Run | Scr Mat Mat Combat Hostiles Destroyed 30 | . 9 21 Melee 20 | . 2 18 Guns 7 | . 7 . Classes Destroyed 9 | 2 6 1 Builder 2 | . 1 1 Tunneler 6 | 5 1 . Hauler 6 | . 2 4 Recycler 5 | 1 1 3 Operator 3 | . 1 2 Watcher 6 | . 1 5 Swarmer 12 | . 3 9 Grunt 12 | . 6 6 Sentry 6 | . . 6 Best Kill Streak 9 | 4 4 9 Combat Bots Only 5 | . 3 5 Max Kills in Single Turn 2 | 2 1 1 Gunslinging . | . . . Exploded . | . . . Melee 1 | . 1 1 Uniques/NPCs Destroyed . | . . . Combat | -11 -10 -9 -------- Run | Scr Mat Mat Damage Taken 1795 | . 440 1355 Core 1467 | . 355 1112 Absorbed by Shields . | . . . Redirected to Core 1068 | . 284 784 Core Remaining (%) 100 | 100 100 . Volleys Fired 37 | 8 29 . Largest 3 | 3 3 . Hottest 90 | 90 90 . Shots Fired 108 | 24 84 . Gun 108 | 24 84 . Cannon . | . . . Launcher . | . . . Special . | . . . Kinetic 74 | 16 58 . Thermal 34 | 8 26 . Explosive . | . . . Electromagnetic . | . . . Robot Hit Streak 11 | 4 11 . Robot Miss Streak 4 | 2 4 . Penetration Max . | . . . Secondary Targets . | . . . Shots Hit Robots 187 | 12 76 99 Core Hits 63 | 8 23 32 Critical Hits 5 | . . 5 Critical Kills 2 | . . 2 Critical Parts Destroyed 2 | . . 2 Melee Attacks 177 | . 35 142 Impact 82 | . 34 48 Slashing 95 | . 1 94 Piercing . | . . . Sneak Attacks 21 | . 5 16 Combat Hostiles 2 | . 1 1 Follow-up Attacks 44 | . 6 38 Damage Inflicted 4395 | 152 1220 3023 Guns 687 | 152 535 . Cannons . | . . . Explosions . | . . . Melee 3708 | . 685 3023 Ramming . | . . . Kinetic 388 | 64 324 . Thermal 299 | 88 211 . Explosive . | . . . Electromagnetic . | . . . Impact 1294 | . 602 692 Slashing 2414 | . 83 2331 Piercing . | . . . Highest Corruption . | . . . Average Corruption . | . . . Corruption Purged . | . . . Overload Shots . | . . . Overflow Damage 398 | . 124 274 Projectiles . | . . . Explosions . | . . . Melee 398 | . 124 274 Knockbacks 5 | . 3 2 Impact 5 | . 3 2 Kinetic . | . . . Secondary . | . . . Self-Inflicted Damage . | . . . Shots . | . . . Rammed . | . . . Targets Rammed . | . . . Kicked . | . . . Crushed . | . . . Highest Temperature 366 | 150 366 52 Average Temperature 94 | 74 148 17 Received Heat Transfer 450 | . 180 270 Siege Activations . | . . . Robots Corrupted . | . . . Combat Hostiles . | . . . Parts Fried 11 | . 6 5 Impact Corruptions 16 | . 6 10 Robots Melted . | . . . Combat Hostiles . | . . . Parts Melted 1 | . 1 . Heat Transferred 888 | 259 629 . Parts Sabotaged . | . . . Parts Stolen . | . . . Parts Stripped . | . . . Power Chain Reactions . | . . . Missiles Intercepted . | . . . Alert | -11 -10 -9 ------- Run | Scr Mat Mat Peak Influence 624 | 30 284 624 Average Influence 220 | 15 128 372 Maximum Alert Level 2 | . 1 2 Low Security (%) 60 | 100 88 18 Level 1 18 | . 11 31 Level 2 20 | . . 50 Level 3 . | . . . Level 4 . | . . . Level 5 . | . . . High Security . | . . . Max Security . | . . . Squads Dispatched 5 | . 3 2 Investigation 1 | . 1 . Extermination . | . . . Reinforcement 4 | . 2 2 Assault . | . . . Garrison . | . . . Intercept . | . . . Construction Impeded . | . . . Haulers Reinforced . | . . . Stealth | -11 -10 -9 --------- Run | Scr Mat Mat Distress Signals 3 | . 1 2 Communications Jammed . | . . . Distress Signals . | . . . Times Spotted 50 | . 18 32 Peak Tracking Total 7 | . 4 7 Tactical Retreats 4 | . . 4 Traps | -11 -10 -9 ------- Run | Scr Mat Mat Traps Triggered 4 | . 4 . Indirectly . | . . . Trap Hack Attempts . | . . . Triggered . | . . . Disarmed . | . . . Reprogrammed . | . . . Reused . | . . . Traps Extracted . | . . . Installed . | . . . Triggered . | . . . Machines | -11 -10 -9 ---------- Run | Scr Mat Mat Machines Disabled 1 | . 1 . Max in Single Turn 1 | . 1 . Machines Sabotaged . | . . . Garrisons Compromised . | . . . Overloaded Fab Kills . | . . . Fab Network Shutdowns . | . . . Hacking | -11 -10 -9 --------- Run | Scr Mat Mat Machines Accessed 1 | . . 1 Terminals 1 | . . 1 Fabricators . | . . . Repair Stations . | . . . Recycling Units . | . . . Scanalyzers . | . . . Garrison Access . | . . . Total Hacks 1 | . . 1 Successful 1 | . . 1 Failed . | . . . Catastrophic . | . . . Database Lockouts . | . . . Manual . | . . . Terminals 1 | . . 1 Fabricators . | . . . Repair Stations . | . . . Recycling Units . | . . . Scanalyzers . | . . . Garrison Access . | . . . Terminal Hacks 1 | . . 1 Locate Traps 1 | . . 1 Fabricator Hacks . | . . . Repair Station Hacks . | . . . Recycling Unit Hacks . | . . . Scanalyzer . | . . . Garrison Access Hacks . | . . . Unauthorized Hacks . | . . . Terminals . | . . . Fabricators . | . . . Repair Stations . | . . . Recycling Units . | . . . Scanalyzers . | . . . Garrison Access . | . . . Data Cores Recovered 1 | . . 1 Used 1 | . . 1 Hacking Detections . | . . . Full Trace Events . | . . . Feedback Events . | . . . Feedback Blocked . | . . . Robot Schematics Acquired . | . . . Robots Built . | . . . Matter . | . . . Time . | . . . Total Robot Build Rating . | . . . Part Schematics Acquired . | . . . Parts Built . | . . . Matter . | . . . Time . | . . . Total Part Build Rating . | . . . Parts Repaired . | . . . Time . | . . . Parts Recycled . | . . . Recycled Matter . | . . . Retrieved Matter . | . . . Retrieved Components . | . . . Parts Scanalyzed . | . . . Part Schematics Acquired . | . . . Parts Damaged . | . . . Bothacking | -11 -10 -9 ------------ Run | Scr Mat Mat Used RIF Installer . | . . . Robots Hacked . | . . . Non-combat . | . . . Combat . | . . . Robot Hacks Applied . | . . . Relay Couplers Released . | . . . Robots Rewired . | . . . Allies Hacked . | . . . Hacks Repelled . | . . . Allies | -11 -10 -9 -------- Run | Scr Mat Mat Total Allies . | . . . Largest Group . | . . . Highest-Rated Group . | . . . Highest-Rated Ally . | . . . Total Orders . | . . . Ally Attacks . | . . . Total Damage . | . . . Kills . | . . . Allies Corrupted . | . . . Allies Melted . | . . . Intel | -11 -10 -9 ------- Run | Scr Mat Mat Robot Analysis Total . | . . . Derelict Logs Recovered . | . . . Drone Launches . | . . . Drone Recoveries . | . . . Exploration | -11 -10 -9 ------------- Run | Scr Mat Mat Turns Passed 1342 | 116 668 558 Spaces Moved 1429 | 83 746 600 Core 4 | 3 1 . Treads . | . . . Legs . | . . . Wheels 375 | 80 295 . Hover . | . . . Flight 1050 | . 450 600 Fastest Speed 29 | 50 37 29 Average Speed 46 | 78 55 32 Slowest Speed 120 | 80 120 37 Overloaded Moves . | . . . Propulsion Burnouts . | . . . Robots Hopped 3 | . 1 2 Cave-ins Triggered . | . . . Exploration Rate (%) 50 | 3 99 48 Regions Visited 2 Branch Regions . Pre-discovered Areas . | . . . Known Exits Taken . | . . . Unknown Exits Taken 2 | 1 1 . Scrap Searched . | . . . Spaces Dug . | . . . Terrain Destroyed . | . . . Melee . | . . . Projectile . | . . . AOE . | . . . Actions | -11 -10 -9 --------- Run | Scr Mat Mat Total 1771 | 112 896 763 Wait 84 | 13 49 22 Move 1421 | 82 743 596 Hop 3 | . 1 2 Pick Up . | . . . Fast Attach 26 | 9 13 4 Attach . | . . . Detach . | . . . Swap 7 | . 1 6 Drop 17 | . 9 8 Fire 37 | 8 29 . Melee 122 | . 28 94 Ram . | . . . Kick . | . . . Crush . | . . . Escape Stasis . | . . . Rewire . | . . . Trap . | . . . Miscellaneous 54 | . 23 31 Route ------- -11/Scrapyard -10/Materials (discovered 4 exits: *Mat x3 / [*Min]) -9/Materials History --------- Turn | Location | Event 1 | -11/Scrapyard | Upgraded with Power slot (x1) 1 | -11/Scrapyard | Upgraded with Propulsion slot (x1) 1 | -11/Scrapyard | Upgraded with Utility slot (x1) 1 | -11/Scrapyard | Upgraded with Weapon slot (x2) 7 | -11/Scrapyard | Discovered new exit (range 15) 117 | -11/Scrapyard | Entered Materials 229 | -10/Materials | Discovered new exit (range 5) 248 | -10/Materials | Discovered new exit (range 10) 308 | -10/Materials | Build established: Skirmisher 328 | -10/Materials | Discovered new exit (range 8) 547 | -10/Materials | Discovered new exit (range 6) 785 | -10/Materials | Entered another Materials area 787 | -9/Materials | Reached level 2 787 | -9/Materials | Upgraded with Propulsion slot (x1) 824 | -9/Materials | Build established: Scavenger-Mutant 824 | -9/Materials | Reached level 3 827 | -9/Materials | Upgraded with Propulsion slot (x1) 1110 | -9/Materials | Reached level 4 1263 | -9/Materials | Core integrity fell below 50% 1281 | -9/Materials | Core integrity fell below 20% 1343 | -9/Materials | Destroyed by Y-45 Defender with Heavy Assault Rifle Last Messages --------------- 01297_ R-06 Scavenger collects Lgt. Assault Rifle. 01298_ S-10 Pest destroyed. 01300_ R-06 Scavenger collects Lgt. Assault Rifle. 01301_ Acquired 10 matter. 01302_ Dropped Flight Unit. 01304_ Acquired 6 matter. 01304_ Acquired 4 matter. 01305_ R-06 Scavenger collects Flight Unit. 01305_ Dropped Flight Unit. 01307_ Sneak attack on R-06 Scavenger. 01307_ Destroyed Lgt. Ion Engine. 01307_ Destroyed Tractor Beam. 01307_ Sneak attack on R-06 Scavenger. 01307_ Mace follow-up attack on R-06 Scavenger. 01307_ R-06 Scavenger destroyed. 01310_ K-01 Serf collects debris. 01311_ Acquired 10 matter. 01314_ W-16 Scout sends out distress signal. 01330_ W-16 Scout destroyed. 01336_ Mace follow-up attack on Y-45 Defender. Map ----- +----------------------------------------------------+ | ?????????????????????????????????????????????????? | | ?????????????????????????????????????????????????? | | ?????????????????????????????????????????????????? | | ????????????????????????????? ???????????????????? | | ?????????????????????????????????????????????????? | | ???????????????????????#??????????"??????????????? | | ??????????????????????####???#?? ??? ????????????? | | ???????????????????????# ?????#????????????????? | | ??????????????????????## ##????????????????????? | | ?????????????????????#?# ???????? ?????????????? | | ??????????????????????## #??#???#????? ???????? | | ????????????????#? ?? ?# ##????#?#????#????????? | | ?????????????????? ??# ##???##??#????????????? | | ?????????????????? ?## #?????#???? ??????????? | | ????????????????#??????# ########### ??????????? | | ????????????????#??????# ## #???????????? | | ????????????????? ? ?## ##![ #????? ??# ? | | ?????????????#######+## r #[! ] #?? ???" ? ? | | ???????????? ^ #*%= #? ??""? #?? | | ???????????? r!= # ????""??# | | ???????????? r # #?? ? ??#? | | ??????????#????######## # ! ##?##?/###? | | ?????????? ?#########?## ## #?#### #???? | | ???????????# # ## ###### ?#?# | | ?????????????""" + ####+##+######## ###? | | ??????????????""" # @Y#??# ########??##??# | | ?????????????"""" ?# #?## ##?####??###### | | ?????????????"""" ???### #??# #####?##??##### | | ???????????? """ ???? ??# #??# | | ???????????? ???? ???#?# ##?# ################# | | ???????????????#????#????# ##?# ####### # | | ?????????????????##??#??## #??# # # % # | | ?????????????????##?#??### #### # # """ # | | ?????????????#?????#?????# #### # """ # """ + | | ??????????????##????#?#?## # """ # ] """ # | | ????????????????#?#? ???# + """ #!! """ # | | ????????????#????#???"?"?# # #!! """%# | | ?????????????#???#?????" # # #!! # | | ???????????? ???#???? ? # ###########+##### | | ?????????????? ?#?# ? ?# # #### ##### | | ?????????????? ??## ? # # """ ##?# ##### | | ????????????????#####+#### + """ #### #?### | | ???????????? ? ??? # # """ #### ##### | | ?????????????? ??? # ####+## ##?# ####? | | ??????????? ?? # ##! # #### ##### | | ???????????????#????## # ## ""#####?###?# ##### | | ????????????? ? #?# # ## ""######?#### ##### | | ????????????? ?? ### # ## T"########### ##### | | ???????????#????? ??## # ## ""##?######## ##### | | ????????????#?? ??# # ##! ""########### ##### | +----------------------------------------------------+ Best States ------------- Heat Dissipation 25 Energy Generation 19 Energy Capacity 430 Matter Stores 300 Matter Capacity 300 Sight Range 16 Robot Scan Range 2 Terrain Scan Range 16 Terrain Scan Density 160 Evasion (%) 64 Item Schematics ----------------- None Robot Schematics ------------------ None Fabricated ------------ Nothing Alien Tech Used ----------------- None Achievements -------------- None Challenges ------------ None RPGLIKE | -11 -10 -9 --------- Run | Scr Mat Mat Levels Raised 3 | . . 3 XP Earned 8829 | 3000 1330 4499 XP Spent 6000 | 3000 . 3000 Upgrades 14 | 8 . 6 Power Slot 1 | 1 . . Propulsion Slot 3 | 1 . 2 Utility Slot 1 | 1 . . Weapon Slot 2 | 2 . . Mass Support 4 | 1 . 3 Sensor Range 1 | 1 . . Terrain Scan Density 1 | 1 . . Melee Accuracy 1 | . . 1 Protomatter Created 454 | . 162 292 Integrity Restored 1063 | . 439 624 Core 860 | . 355 505 Parts 203 | . 84 119 Protomatter Decayed 49 | . 7 42 Game ------ Seed AlphaBoreTriangulator Manual? 0 Play Time 00:22:28 Cumulative 77.1 hours Start 2019.12.21 @ 16:45:31 End 2019.12.21 @ 17:29:04 Sessions 1 Manual Loads 0 Difficulty Rogue Special Mode Winter2019/RPGLIKE Game No. 127 Rogue 127 Adventurer 0 Explorer 0 Win Type - Total 0 Types 0/0/0/0/0/0/0 Lore% 22 Gallery% 28 Achievement% 27 Wizard Run 0 Options --------- ASCII 0 Keyboard 0 Movement Mouse Keybinds 0 Fullscreen 2 Font 18/SmallcapsGlow Map View 76x50 Tactical HUD 1 Map Filters NONE Filters LOW_CONTRAST(13,24,33)|BRIGHTNESS(120)|SATURATION(80) Steam 1 RUN: f1cefc2b-5a9c-46da-8128-118fc6f37701